fUST/lending_fUST_20240728
["ID","MTS","AMOUNT","RATE_DAILY","PERIOD"]
[333481978,1722179449623,-151.0,0.00014963,2]
[333481979,1722179449633,-151.0,0.00014963,2]
[333481980,1722179449643,-6166.62,0.00014963,2]
[333481981,1722179449653,-176.794862,0.00014963,2]
[333481982,1722179449664,-176.794862,0.00014963,2]
[333481983,1722179449676,-176.794862,0.00014963,2]
[333481984,1722179449687,-176.794862,0.00014963,2]
[333481985,1722179449698,-500.0,0.00014963,2]
[333481986,1722179449709,-500.0,0.00014963,2]
[333481987,1722179449720,-208.734061,0.00014963,2]
[333481988,1722179449731,-208.734061,0.00014963,2]
[333481989,1722179449740,-208.734061,0.00014963,2]
[333481990,1722179449750,-208.734056,0.00014963,2]
[333481991,1722179449759,-2846.09052378,0.00015,2]
[333481992,1722179449769,-1108.17514816,0.00015,2]
[333481993,1722179449779,-951.2964008,0.00015,2]
[333481994,1722179449790,-624.71076,0.00015046,2]
[333481995,1722179449801,-624.71076,0.00015046,2]
[333481996,1722179449811,-151.0,0.00015046,2]
[333481997,1722179449822,-166.666666,0.00015157,2]
[333481998,1722179449832,-4590.62532419,0.00015222,2]
[333481999,1722179449843,-35729.7754407,0.00015227,2]
[333482000,1722179449853,-500.0,0.00015227,2]
[333482001,1722179449864,-363.608078,0.0001523,2]
[333482002,1722179449874,-363.608078,0.0001523,2]
[333482003,1722179449885,-151.0,0.0001523,2]
[333482004,1722179449894,-151.0,0.0001523,2]
[333482005,1722179449904,-176.794862,0.0001523,2]
[333482006,1722179449914,-176.794862,0.0001523,2]
[333482007,1722179449924,-500.0,0.00015235,2]
[333482008,1722179449934,-500.0,0.00015235,2]
[333482009,1722179449943,-832.59,0.00015235,2]
[333482010,1722179449954,-500.0,0.00015235,2]
[333482011,1722179449964,-500.0,0.00015235,2]
[333482012,1722179449975,-500.0,0.00015235,2]
[333482013,1722179449985,-500.0,0.00015235,2]
[333482014,1722179449995,-500.0,0.00015235,2]
[333482015,1722179450004,-500.0,0.00015235,2]
[333482016,1722179450014,-500.0,0.00015235,2]
[333482017,1722179450024,-500.0,0.00015235,2]
[333482018,1722179450033,-500.0,0.00015235,2]
[333482019,1722179450043,-500.0,0.00015235,2]
[333482020,1722179450055,-500.0,0.00015235,2]
[333482021,1722179450065,-500.0,0.00015235,2]
[333482022,1722179450074,-500.0,0.00015235,2]
[333482023,1722179450086,-500.0,0.00015235,2]
[333482024,1722179450095,-819.27,0.00015235,2]
[333482025,1722179450106,-500.0,0.00015236,2]
[333482026,1722179450116,-151.0,0.00015236,2]
[333482027,1722179450126,-500.0,0.00015236,2]
[333482028,1722179450137,-500.0,0.00015236,2]
[333482029,1722179450150,-500.0,0.00015236,2]
[333482030,1722179450160,-530.72,0.00015236,2]
[333482031,1722179450171,-810.177448,0.00015236,2]
[333482032,1722179450181,-810.177448,0.00015236,2]
[333482033,1722179450190,-518.66,0.00015236,2]
[333482034,1722179450201,-500.0,0.00015236,2]
[333482035,1722179450211,-500.0,0.00015236,2]
[333482036,1722179450222,-168.363356,0.00015236,2]
[333482037,1722179450233,-168.363356,0.00015236,2]
[333482038,1722179450244,-500.0,0.00015236,2]
[333482039,1722179450254,-500.0,0.00015236,2]
[333482040,1722179450264,-500.0,0.00015236,2]
[333482041,1722179450274,-500.0,0.00015236,2]
[333482042,1722179450284,-500.0,0.00015236,2]
[333482043,1722179450294,-500.0,0.00015236,2]
[333482044,1722179450305,-500.0,0.00015236,2]
[333482045,1722179450315,-500.0,0.00015236,2]
[333482046,1722179450325,-500.0,0.00015236,2]
[333482047,1722179450335,-500.0,0.00015237,2]
[333482048,1722179450350,-500.0,0.00015237,2]
[333482049,1722179450359,-215.17,0.00015237,2]
[333482050,1722179450369,-500.0,0.00015237,2]
[333482051,1722179450379,-500.0,0.00015237,2]
[333482052,1722179450390,-500.0,0.00015237,2]
[333482053,1722179450400,-500.0,0.00015237,2]
[333482054,1722179450410,-500.0,0.00015237,2]
[333482055,1722179450420,-500.0,0.00015237,2]
[333482056,1722179450430,-151.0,0.00015237,2]
[333482057,1722179450441,-500.0,0.00015237,2]
[333482058,1722179450452,-151.0,0.00015237,2]
[333482059,1722179450462,-500.0,0.00015237,2]
[333482060,1722179450473,-500.0,0.00015237,2]
[333482061,1722179450483,-288.203309,0.00015237,2]
[333482062,1722179450493,-151.0,0.00015237,2]
[333482063,1722179450503,-288.203309,0.00015237,2]
[333482064,1722179450512,-151.0,0.00015237,2]
[333482065,1722179450522,-1902.35133029,0.00015237,2]
[333482087,1722180433133,-166.666666,0.00013183,2]
[333482088,1722180433162,-169.011086,0.0001354,2]
[333482089,1722180433184,-82.435325,0.00013543,2]
[333482090,1722180434108,-84.231341,0.00013543,2]
[333482091,1722180434130,-166.666666,0.00013902,2]
[333482092,1722180434153,-169.011086,0.00014246,2]
[333482093,1722180434174,-696.088337,0.00014247,2]
[333482094,1722180434196,-166.666666,0.00014262,2]
[333482095,1722180434218,-806.85707432,0.00014586,2]
[333482096,1722180434240,-290.96583334,0.00014588,2]
[333482097,1722180434261,-166.666666,0.00014621,2]
[333482098,1722180434282,-1349.28404448,0.00014677,2]
[333482099,1722180434303,-300.0,0.00014678,2]
[333482100,1722180434324,-300.0,0.00014678,2]
[333482101,1722180434346,-500.0,0.00014679,2]
[333482102,1722180434366,-500.0,0.00014679,2]
[333482103,1722180434387,-500.0,0.00014679,2]
[333482104,1722180434409,-500.0,0.00014679,2]
[333482105,1722180434430,-500.0,0.00014679,2]
[333482106,1722180434451,-2580.99112799,0.00014679,2]
[333482107,1722180437158,-3071.74887201,0.00014679,2]
[333482108,1722180437181,-500.0,0.00014679,2]
[333482109,1722180437202,-500.0,0.00014679,2]
[333482110,1722180437226,-3677.58317006,0.0001468,2]
[333482117,1722180545441,-399.18,0.00010959,2]
[333482118,1722180545463,-5015.82935357,0.00012,2]
[333482119,1722180570113,-2.18826743,0.00012,2]
[333482120,1722180590893,164.24967346,0.00012,2]
[333482121,1722180594519,0.22872611,0.00012,2]
[333482155,1722180632026,-154.65423533,0.00012,2]
[333482156,1722180632036,-1288.067597,0.00013679,2]
[333482157,1722180632046,-705.99994003,0.0001458,2]
[333482158,1722180632056,-300.0,0.00014678,2]
[333482159,1722180632065,-500.0,0.00014679,2]
[333482160,1722180632075,-500.0,0.00014679,2]
[333482161,1722180632086,-500.0,0.00014679,2]
[333482162,1722180632095,-500.0,0.00014679,2]
[333482163,1722180632105,-749.35,0.00014679,2]
[333482164,1722180632115,-500.0,0.00014679,2]
[333482165,1722180632124,-272.12822764,0.00014679,2]
[333482166,1722180632136,-227.87177236,0.00014679,2]
[333482167,1722180632146,-500.0,0.00014679,2]
[333482168,1722180632156,-500.0,0.00014679,2]
[333482169,1722180632165,-500.0,0.00014679,2]
[333482170,1722180632175,-570.52,0.00014679,2]
[333482171,1722180632185,-500.0,0.00014679,2]
[333482172,1722180632196,-500.0,0.00014679,2]
[333482173,1722180632207,-500.0,0.00014679,2]
[333482174,1722180632218,-500.0,0.00014679,2]
[333482175,1722180632228,-500.0,0.00014679,2]
[333482176,1722180632240,-500.0,0.00014679,2]
[333482177,1722180632250,-500.0,0.00014679,2]
[333482178,1722180632259,-500.0,0.00014679,2]
[333482179,1722180632269,-1166.79933519,0.0001468,2]
[333482187,1722180638031,-292.6952818,0.00014679,2]
[333482188,1722180638176,-207.3047182,0.00014679,2]
[333482189,1722180638186,-500.0,0.00014679,2]
[333482190,1722180638196,-500.0,0.00014679,2]
[333482191,1722180638206,-6988.76900298,0.0001468,2]
[333482337,1722180647546,-340.76109052,0.00014679,2]
[333482349,1722181105615,154.71377951,0.0001,2]
[333482350,1722181135175,347.67516053,9.999e-05,2]
[333482367,1722181642118,-813.86963795,0.00013,2]
[333482368,1722181652115,-1.95288348,0.00013,2]
[333482369,1722181652136,-172.257942,0.00013196,2]
[333482370,1722181652159,-159.820455,0.00013365,2]
[333482371,1722181652183,-159.820455,0.0001354,2]
[333482372,1722181652205,-172.257942,0.00013646,2]
[333482373,1722181652226,-2711.8861843,0.00013699,2]
[333482374,1722181652249,-199.1129963,0.00013699,2]
[333482375,1722181652269,-159.820455,0.00013714,2]
[333482376,1722181652291,-159.820455,0.00013888,2]
[333482377,1722181652311,-159.820455,0.00014062,2]
[333482378,1722181652332,-172.257942,0.00014096,2]
[333482379,1722181652352,-661.28392,0.00014247,2]
[333482380,1722181652373,-300.0,0.0001433,2]
[333482381,1722181652394,-3476.56942692,0.00014331,2]
[333482382,1722181653169,-1674.42722502,0.00014331,2]
[333482383,1722181653191,-367.60913684,0.00014437,2]
[333482384,1722181653211,-152.61196378,0.00014482,2]
[333482385,1722181653233,-172.257942,0.00014545,2]
[333482386,1722181653256,-617.7499475,0.00014567,2]
[333482387,1722181653279,-369.04990606,0.00014573,2]
[333482388,1722181653300,-369.04990604,0.00014576,2]
[333482389,1722181653321,-369.04990604,0.0001458,2]
[333482390,1722181653343,-8.24177603,0.00014583,2]
[333482391,1722181654105,-360.80813001,0.00014583,2]
[333482392,1722181654128,-225.85165054,0.00014586,2]
[333482393,1722181745148,-196.0,0.00012119,2]
[333482394,1722181747113,-49.76003762,0.00012119,2]
[333482490,1722181839242,-1445.30184261,0.00014579,2]
[333482492,1722181839253,-143.1982555,0.00014586,2]
[333482494,1722181839264,-194.46725522,0.00014586,2]
[333482496,1722181839274,-210.96001386,0.000146,2]
[333482498,1722181839283,-492.57402723,0.00014665,2]
[333482592,1722181840330,-7.42597277,0.00014665,2]
[333482595,1722181840341,-500.0,0.00014665,2]
[333482597,1722181840351,-500.0,0.00014665,2]
[333482598,1722181840360,-500.0,0.00014665,2]
[333482600,1722181840369,-500.0,0.00014665,2]
[333482602,1722181840379,-500.0,0.00014665,2]
[333482605,1722181840389,-500.0,0.00014665,2]
[333482607,1722181840399,-240.0,0.00014665,2]
[333482610,1722181840409,-500.0,0.00014665,2]
[333482612,1722181840419,-500.0,0.00014665,2]
[333482615,1722181840430,-504.02155593,0.00014665,2]
[333482617,1722181840440,-614.74755836,0.00014665,2]
[333482619,1722181840450,-500.0,0.00014665,2]
[333482621,1722181840461,-500.0,0.00014665,2]
[333482623,1722181840471,-500.0,0.00014665,2]
[333482625,1722181840480,-500.0,0.00014665,2]
[333482627,1722181840490,-500.0,0.00014665,2]
[333482629,1722181840500,-500.0,0.00014665,2]
[333482631,1722181840509,-500.0,0.00014665,2]
[333482633,1722181840519,-500.0,0.00014665,2]
[333482635,1722181840528,-500.0,0.00014665,2]
[333482637,1722181840538,-500.0,0.00014665,2]
[333482639,1722181840547,-500.0,0.00014665,2]
[333482640,1722181840556,-535.04688829,0.00014665,2]
[333482642,1722181840566,-500.0,0.00014665,2]
[333482644,1722181840575,-13026.34736706,0.00014666,5]
[333482646,1722181840585,-500.0,0.00014666,2]
[333482648,1722181840594,-500.0,0.00014666,2]
[333482650,1722181840604,-500.0,0.00014666,2]
[333482652,1722181840614,-500.0,0.00014666,2]
[333482655,1722181840625,-500.0,0.00014666,2]
[333482657,1722181840635,-500.0,0.00014666,2]
[333482659,1722181840647,-500.0,0.00014666,2]
[333482661,1722181840656,-500.0,0.00014666,2]
[333482663,1722181840668,-500.0,0.00014666,2]
[333482665,1722181840679,-500.0,0.00014666,2]
[333482681,1722181840820,-509.94,0.00014666,2]
[333482683,1722181840832,-500.0,0.00014666,2]
[333482685,1722181840843,-500.0,0.00014666,2]
[333482687,1722181840853,-500.0,0.00014666,2]
[333482689,1722181840863,-500.0,0.00014666,2]
[333482691,1722181840873,-500.0,0.00014666,2]
[333482693,1722181840883,-500.0,0.00014666,2]
[333482695,1722181840894,-532.72,0.00014666,2]
[333482697,1722181840903,-500.0,0.00014666,2]
[333482699,1722181840914,-500.0,0.00014666,2]
[333482701,1722181840924,-500.0,0.00014666,2]
[333482703,1722181840934,-500.0,0.00014666,2]
[333482705,1722181840943,-500.0,0.00014666,2]
[333482707,1722181840953,-500.0,0.00014666,2]
[333482709,1722181840963,-500.0,0.00014666,2]
[333482711,1722181840973,-500.0,0.00014666,2]
[333482713,1722181840984,-500.0,0.00014666,2]
[333482715,1722181840994,-500.0,0.00014666,2]
[333482718,1722181841004,-502.46244571,0.00014666,2]
[333482720,1722181841014,-500.0,0.00014666,2]
[333482722,1722181841024,-500.0,0.00014666,2]
[333482724,1722181841034,-529.89664249,0.00014666,2]
[333482725,1722181841044,-865.79,0.00014666,2]
[333482727,1722181841054,-500.0,0.00014666,2]
[333482729,1722181841064,-500.0,0.00014666,2]
[333482731,1722181841074,-500.0,0.00014666,2]
[333482733,1722181841086,-500.0,0.00014666,2]
[333482735,1722181841095,-500.0,0.00014666,2]
[333482737,1722181841105,-500.0,0.00014666,2]
[333482739,1722181841115,-503.54419415,0.00014666,2]
[333482740,1722181841125,-500.0,0.00014666,2]
[333482741,1722181841135,-508.22712239,0.00014666,2]
[333482742,1722181841145,-500.0,0.00014666,2]
[333482744,1722181841158,-500.0,0.00014666,2]
[333482746,1722181841169,-500.0,0.00014666,2]
[333482747,1722181841179,-500.0,0.00014666,2]
[333482749,1722181841191,-502.21731606,0.00014666,2]
[333482751,1722181841201,-500.0,0.00014666,2]
[333482753,1722181841210,-500.0,0.00014666,2]
[333482755,1722181841219,-500.0,0.00014666,2]
[333482757,1722181841232,-500.0,0.00014666,2]
[333482759,1722181841242,-500.0,0.00014666,2]
[333482761,1722181841252,-506.34448599,0.00014666,2]
[333482762,1722181841262,-464.43614291,0.00014666,2]
[333482763,1722181841271,-510.83707425,0.00014666,2]
[333482765,1722181841281,-500.0,0.00014666,2]
[333482767,1722181841291,-500.0,0.00014666,2]
[333482769,1722181841301,-1380.77,0.00014666,2]
[333482771,1722181841311,-500.0,0.00014666,2]
[333482773,1722181841321,-500.0,0.00014666,2]
[333482775,1722181841331,-500.0,0.00014666,2]
[333482777,1722181841340,-500.0,0.00014666,2]
[333482779,1722181841351,-500.0,0.00014666,2]
[333482781,1722181841362,-500.0,0.00014666,2]
[333482783,1722181841372,-500.0,0.00014666,2]
[333482785,1722181841382,-500.0,0.00014666,2]
[333482787,1722181841392,-500.0,0.00014666,2]
[333482789,1722181841401,-1380.77,0.00014668,2]
[333482791,1722181841412,-398.85289877,0.00014668,2]
[333482793,1722181841421,-167.56240213,0.00014668,2]
[333482795,1722181841431,-233.08787453,0.00014668,2]
[333482797,1722181841441,-500.0,0.00014668,2]
[333482799,1722181841451,-286.35951578,0.00014668,2]
[333482801,1722181841460,-500.0,0.00014668,2]
[333482803,1722181841470,-500.0,0.00014668,2]
[333482804,1722181841479,-202.90317448,0.00014668,2]
[333482805,1722181841490,-151.0,0.00014669,2]
[333482806,1722181841500,-1252.171725,0.00014669,2]
[333482807,1722181841510,-1252.171725,0.00014669,2]
[333482808,1722181841519,-198.293231,0.00014669,2]
[333482809,1722181841529,-198.293231,0.00014669,2]
[333482810,1722181841538,-769.729051,0.00014669,2]
[333482811,1722181841548,-151.0,0.00014669,2]
[333482812,1722181841558,-769.729051,0.00014669,2]
[333482813,1722181841567,-151.0,0.00014669,2]
[333482814,1722181841582,-500.0,0.00014675,2]
[333482815,1722181841595,-500.0,0.00014675,2]
[333482816,1722181841606,-500.0,0.00014675,2]
[333482817,1722181841617,-500.0,0.00014675,2]
[333482818,1722181841627,-1131.02,0.00014675,2]
[333482819,1722181841636,-183.69417851,0.00014675,2]
[333482820,1722181841649,-500.0,0.00014675,2]
[333482821,1722181841661,-500.0,0.00014675,2]
[333482822,1722181841672,-500.0,0.00014675,2]
[333482823,1722181841682,-500.0,0.00014675,2]
[333482824,1722181841692,-500.0,0.00014675,2]
[333482825,1722181841702,-500.0,0.00014675,2]
[333482826,1722181841711,-500.0,0.00014675,2]
[333482827,1722181841721,-500.0,0.00014675,2]
[333482828,1722181841730,-500.0,0.00014675,2]
[333482829,1722181841740,-502.31216458,0.00014675,2]
[333482830,1722181841750,-509.8,0.00014675,2]
[333482831,1722181841759,-500.0,0.00014675,2]
[333482832,1722181841769,-500.0,0.00014675,2]
[333482833,1722181841779,-623.41,0.00014675,2]
[333482834,1722181841790,-501.0871474,0.00014675,2]
[333482835,1722181841799,-500.0,0.00014675,2]
[333482836,1722181841809,-415.00935357,0.00014675,2]
[333482837,1722181841818,-500.0,0.00014675,2]
[333482838,1722181841829,-500.0,0.00014675,2]
[333482839,1722181841839,-500.0,0.00014675,2]
[333482840,1722181841849,-500.0,0.00014675,2]
[333482841,1722181841859,-500.0,0.00014675,2]
[333482842,1722181841868,-500.0,0.00014675,2]
[333482843,1722181841878,-502.1365446,0.00014675,2]
[333482844,1722181841887,-500.0,0.00014675,2]
[333482845,1722181841897,-500.0,0.00014675,2]
[333482846,1722181841907,-574.3,0.00014675,2]
[333482847,1722181841918,-500.0,0.00014675,2]
[333482848,1722181841929,-500.0,0.00014675,2]
[333482849,1722181841940,-500.0,0.00014675,2]
[333482850,1722181841950,-500.0,0.00014675,2]
[333482851,1722181841960,-500.0,0.00014675,2]
[333482852,1722181841970,-500.0,0.00014675,2]
[333482853,1722181841980,-151.0,0.00014675,2]
[333482854,1722181841989,-500.0,0.00014675,2]
[333482855,1722181841999,-1600.635109,0.00014675,2]
[333482856,1722181842009,-1600.635109,0.00014675,2]
[333482857,1722181842019,-500.0,0.00014675,2]
[333482858,1722181842029,-500.0,0.00014675,2]
[333482859,1722181842039,-500.0,0.00014675,2]
[333482860,1722181842048,-500.0,0.00014675,2]
[333482861,1722181842058,-500.0,0.00014675,2]
[333482862,1722181842068,-500.0,0.00014675,2]
[333482863,1722181842078,-500.0,0.00014675,2]
[333482864,1722181842088,-500.0,0.00014675,2]
[333482865,1722181842098,-691.37,0.00014675,2]
[333482866,1722181842108,-500.0,0.00014675,2]
[333482867,1722181842119,-1380.77,0.00014675,2]
[333482868,1722181842129,-1380.77,0.00014675,2]
[333482869,1722181842139,-500.0,0.00014675,2]
[333482870,1722181842149,-500.0,0.00014675,2]
[333482871,1722181842163,-502.1407962,0.00014675,2]
[333482872,1722181842173,-151.0,0.00014675,2]
[333482873,1722181842183,-151.0,0.00014676,2]
[333482874,1722181842196,-151.0,0.00014676,2]
[333482875,1722181842205,-157.035304,0.00014676,2]
[333482876,1722181842214,-157.035304,0.00014676,2]
[333482877,1722181842224,-151.0,0.00014676,2]
[333482878,1722181842234,-151.0,0.00014676,2]
[333482879,1722181842245,-206.601066,0.00014676,2]
[333482880,1722181842255,-151.0,0.00014676,2]
[333482881,1722181842264,-151.0,0.00014676,2]
[333482882,1722181842275,-1252.171725,0.00014676,2]
[333482883,1722181842285,-1252.171725,0.00014676,2]
[333482884,1722181842295,-1252.171725,0.00014676,2]
[333482885,1722181842305,-1252.171725,0.00014676,2]
[333482886,1722181842315,-198.293231,0.00014676,2]
[333482887,1722181842324,-198.293231,0.00014676,2]
[333482888,1722181842334,-198.293231,0.00014676,2]
[333482889,1722181842344,-198.293231,0.00014676,2]
[333482890,1722181842353,-769.729051,0.00014676,2]
[333482891,1722181842363,-769.729051,0.00014676,2]
[333482892,1722181842373,-151.0,0.00014676,2]
[333482893,1722181842383,-151.0,0.00014676,2]
[333482894,1722181842394,-769.729051,0.00014676,2]
[333482895,1722181842404,-769.729051,0.00014676,2]
[333482896,1722181842415,-151.0,0.00014676,2]
[333482897,1722181842425,-151.0,0.00014676,2]
[333482898,1722181842435,-151.0,0.00014676,2]
[333482899,1722181842445,-1600.635109,0.00014676,2]
[333482900,1722181842455,-1600.635109,0.00014676,2]
[333482901,1722181842465,-192.401876,0.00014676,2]
[333482902,1722181842475,-192.401876,0.00014676,2]
[333482903,1722181842485,-214.470462,0.00014676,2]
[333482904,1722181842494,-151.8326,0.00014676,2]
[333482905,1722181842503,-214.470462,0.00014676,2]
[333482906,1722181842513,-1397.486007,0.00014676,2]
[333482907,1722181842522,-1397.486007,0.00014676,2]
[333482908,1722181842531,-362.690623,0.00014676,2]
[333482909,1722181842541,-1380.77,0.00014676,2]
[333482910,1722181842551,-1380.77,0.00014676,2]
[333482911,1722181842561,-1380.77,0.00014676,2]
[333482912,1722181842570,-362.690623,0.00014676,2]
[333482913,1722181842580,-151.0,0.00014676,2]
[333482914,1722181842590,-151.0,0.00014676,2]
[333482915,1722181842600,-217.776304,0.00014676,2]
[333482916,1722181842609,-151.0,0.00014676,2]
[333482917,1722181842618,-510.54800537,0.00014677,2]
[333482918,1722181842628,-151.0,0.00014677,2]
[333482919,1722181842637,-500.0,0.00014677,2]
[333482921,1722181842649,-500.0,0.00014677,2]
[333482922,1722181842659,-500.0,0.00014677,2]
[333482923,1722181842669,-500.0,0.00014677,2]
[333482924,1722181842679,-177.122502,0.00014677,2]
[333482925,1722181842688,-500.0,0.00014677,2]
[333482927,1722181842697,-500.0,0.00014677,2]
[333482928,1722181842707,-500.0,0.00014677,2]
[333482929,1722181842718,-151.0,0.00014677,2]
[333482930,1722181842727,-511.92666809,0.00014677,2]
[333482931,1722181842737,-508.30205105,0.00014677,2]
[333482932,1722181842747,-500.0,0.00014677,2]
[333482933,1722181842756,-500.0,0.00014677,2]
[333482934,1722181842766,-500.0,0.00014677,2]
[333482935,1722181842775,-160.165671,0.00014677,2]
[333482936,1722181842784,-500.0,0.00014677,2]
[333482937,1722181842794,-500.0,0.00014677,2]
[333482938,1722181842805,-500.0,0.00014677,2]
[333482939,1722181842815,-500.0,0.00014677,2]
[333482940,1722181842825,-500.0,0.00014677,2]
[333482941,1722181842835,-500.0,0.00014677,2]
[333482942,1722181842845,-500.0,0.00014677,2]
[333482943,1722181842855,-500.0,0.00014677,2]
[333482945,1722181842866,-500.0,0.00014677,2]
[333482947,1722181842875,-151.0,0.00014677,2]
[333482949,1722181842885,-151.0,0.00014677,2]
[333482951,1722181842895,-500.0,0.00014677,2]
[333482953,1722181842905,-151.0,0.00014677,2]
[333482955,1722181842917,-151.0,0.00014677,2]
[333482957,1722181842927,-151.0,0.00014677,2]
[333482959,1722181842938,-500.0,0.00014677,2]
[333482960,1722181842950,-500.0,0.00014677,2]
[333482962,1722181842959,-500.0,0.00014677,2]
[333482963,1722181842969,-500.0,0.00014677,2]
[333482965,1722181842979,-500.0,0.00014677,2]
[333482967,1722181842989,-500.0,0.00014677,2]
[333482969,1722181842999,-788.09,0.00014677,2]
[333482971,1722181843008,-500.0,0.00014677,2]
[333482973,1722181843018,-500.0,0.00014677,2]
[333482974,1722181843028,-151.0,0.00014677,2]
[333482976,1722181843038,-151.0,0.00014677,2]
[333482984,1722181843133,-511.99,0.00014677,2]
[333482985,1722181843144,-500.0,0.00014677,2]
[333482986,1722181843160,-500.0,0.00014677,2]
[333482988,1722181843170,-500.0,0.00014677,2]
[333482989,1722181843180,-151.0,0.00014677,2]
[333482991,1722181843190,-151.0,0.00014677,2]
[333482993,1722181843200,-151.0,0.00014677,2]
[333482994,1722181843210,-151.0,0.00014677,2]
[333482995,1722181843220,-168.650726,0.00014677,2]
[333482996,1722181843231,-151.0,0.00014677,2]
[333482997,1722181843240,-500.0,0.00014677,2]
[333482998,1722181843251,-151.0,0.00014677,2]
[333482999,1722181843260,-151.0,0.00014677,2]
[333483000,1722181843270,-151.0,0.00014677,2]
[333483001,1722181843280,-500.0,0.00014677,2]
[333483002,1722181843289,-227.373176,0.00014677,2]
[333483003,1722181843299,-500.0,0.00014677,2]
[333483004,1722181843309,-151.0,0.00014677,2]
[333483005,1722181843318,-151.0,0.00014677,2]
[333483006,1722181843328,-151.0,0.00014677,2]
[333483007,1722181843338,-151.0,0.00014677,2]
[333483008,1722181843348,-151.0,0.00014677,2]
[333483009,1722181843357,-151.0,0.00014677,2]
[333483010,1722181843367,-215.456253,0.00014677,2]
[333483011,1722181843376,-500.0,0.00014677,2]
[333483012,1722181843386,-500.0,0.00014677,2]
[333483013,1722181843395,-157.035304,0.00014677,2]
[333483014,1722181843407,-157.035304,0.00014677,2]
[333483015,1722181843416,-157.035304,0.00014677,2]
[333483016,1722181843426,-157.035304,0.00014677,2]
[333483017,1722181843435,-157.035304,0.00014677,2]
[333483018,1722181843444,-157.035304,0.00014677,2]
[333483019,1722181843454,-157.035304,0.00014677,2]
[333483020,1722181843463,-157.035304,0.00014677,2]
[333483021,1722181843472,-500.0,0.00014677,2]
[333483022,1722181843481,-500.0,0.00014677,2]
[333483023,1722181843490,-151.0,0.00014677,2]
[333483024,1722181843500,-500.0,0.00014677,2]
[333483025,1722181843509,-151.0,0.00014677,2]
[333483026,1722181843518,-155.108339,0.00014677,2]
[333483027,1722181843528,-500.0,0.00014677,2]
[333483028,1722181843537,-500.0,0.00014677,2]
[333483029,1722181843547,-500.0,0.00014677,2]
[333483030,1722181843556,-500.0,0.00014677,2]
[333483031,1722181843566,-500.0,0.00014677,2]
[333483032,1722181843576,-500.0,0.00014677,2]
[333483033,1722181843585,-151.0,0.00014677,2]
[333483034,1722181843595,-151.0,0.00014677,2]
[333483035,1722181843605,-151.0,0.00014677,2]
[333483036,1722181843614,-151.0,0.00014677,2]
[333483037,1722181843624,-500.0,0.00014677,2]
[333483038,1722181843634,-500.0,0.00014677,2]
[333483039,1722181843645,-500.0,0.00014677,2]
[333483040,1722181843655,-500.0,0.00014677,2]
[333483041,1722181843665,-500.0,0.00014677,2]
[333483042,1722181843674,-500.0,0.00014677,2]
[333483043,1722181843683,-500.0,0.00014677,2]
[333483044,1722181843692,-500.0,0.00014677,2]
[333483045,1722181843701,-251.403132,0.00014677,2]
[333483046,1722181843711,-502.56103007,0.00014677,2]